{"text_format":"1","workbook":"xlsx","n_sheets":2,"sheets":["VDA-Deckblatt","VDA-Messbericht"],"not_rendered":{"charts":0,"images":3,"macros":1,"external_links":1,"defined_names":8,"comments":1,"pivot_tables":0},"unopened":[],"bounds":{"document_bytes":16777216,"sheet_cells":100000,"rows_first":2000,"rows_last":500,"rows_between":2000,"halvings":0,"cell_chars":16384,"cell_head_chars":4096},"cells_cut":0,"cells_raw":0,"read":"whole","date_system":"1900"}

{"sheet":"VDA-Deckblatt","index":0,"n_rows":59,"n_cols":35,"rows_kept":59,"cut":false,"hidden":false,"merged":[[56,0,56,15],[53,3,53,8],[53,12,53,15],[42,3,42,6],[40,3,40,8],[40,11,40,15],[26,21,26,31],[31,7,31,15],[34,16,35,32],[27,5,27,15],[30,5,30,15],[27,21,27,31],[29,5,29,15],[32,8,32,15],[28,5,28,15],[30,21,30,31],[33,21,33,32],[28,21,28,31],[52,12,52,15],[33,5,33,15],[51,11,51,32],[35,5,35,15],[39,3,39,8],[39,12,39,15],[40,16,43,32],[50,10,50,32],[52,20,52,32],[45,13,45,15],[45,16,45,32],[57,0,58,2],[58,14,58,15],[58,6,58,7],[58,8,58,9],[58,10,58,11],[58,12,58,13],[14,19,14,32],[25,6,25,10],[25,14,25,15],[25,22,25,27],[25,31,25,32],[16,0,16,32],[24,9,24,15],[24,24,24,32],[58,28,58,29],[31,16,31,32],[32,26,32,32],[57,24,57,25],[58,24,58,25],[58,18,58,19],[58,20,58,21],[58,26,58,27],[58,16,58,17],[58,22,58,23],[57,18,57,19],[53,16,56,32],[29,21,29,31],[39,20,39,32],[57,26,57,27],[57,28,57,29],[34,5,34,15],[41,3,41,15],[43,0,43,15],[57,14,57,15],[57,20,57,21],[57,16,57,17],[57,6,57,7],[54,3,54,15],[57,8,57,9],[57,10,57,11],[57,12,57,13],[57,22,57,23],[55,3,55,6],[55,8,55,14],[42,8,42,14],[13,1,13,13],[2,1,2,14],[3,1,3,13],[4,1,4,14],[5,1,5,14],[6,1,6,14],[7,1,7,14],[9,1,9,14],[10,1,10,14],[11,1,11,14],[12,1,12,14],[26,5,26,15],[52,3,52,8]]}
[null,null,null,null,null,null,null,null,null,null,null,null,null,null,null,null,"-Deckblatt-",null,null,null,null,null,null,null,null,null,null,null,null,null,"Blatt 1 von",3,null,false,false]
["Absender",null,null,null,null,null,null,null,null,null,null,null,null,null,null,null,null,null,null,"Erstmusterprüfbericht VDA",null,null,null,null,null,null,null,null,null,null,null,null,null,false,false]
[null,"E.G.O. Elektro-Gerätebau GmbH",null,null,null,null,null,null,null,null,null,null,null,null,null,null,null,null,null,"Erstbemusterung",null,null,null,null,null,null,null,null,null,null,null,null,null,false,false]
[null,"Rote-Tor-Straße",null,null,null,null,null,null,null,null,null,null,null,null,null,null,null,null,null,"Nachbemusterung",null,null,null,null,null,null,null,null,null,null,null,null,null,null,false]
[null,"D-75038 Oberderdingen",null,null,null,null,null,null,null,null,null,null,null,null,null,null,null,null,null,"Neuteil"]
[null,null,null,null,null,null,null,null,null,null,null,null,null,null,null,null,null,null,null,"Produktänderung"]
[null,null,null,null,null,null,null,null,null,null,null,null,null,null,null,null,null,null,null,"Produktverlagerung"]
[null,null,null,null,null,null,null,null,null,null,null,null,null,null,null,null,null,null,null,"Änderung von Produktionsverfahren",null,null,null,null,null,null,null,null,null,null,null,null,null,null,false]
["Adresse",null,null,null,null,null,null,null,null,null,null,null,null,null,null,null,null,null,null,"längeres Aussetzen der Fertigung",null,null,null,null,null,null,null,null,null,null,null,null,null,false]
[null,null,null,null,null,null,null,null,null,null,null,null,null,null,null,null,null,null,null,"neuer Unterlieferant"]
[null,null,null,null,null,null,null,null,null,null,null,null,null,null,null,null,null,null,null,"Dokumentationspflichtiges Teil",null,null,null,null,null,null,null,null,null,null,null,null,null,false]
[null,null,null,null,null,null,null,null,null,null,null,null,null,null,null,null,null,null,null,"Fertigungs-/ Prüfplan erstellt",null,null,null,null,null,null,null,null,null,null,null,null,null,false]
[null,null,null,null,null,null,null,null,null,null,null,null,null,null,null,null,null,null,null,"FMEA durchgeführt"]
[null,null,null,null,null,null,null,null,null,null,null,null,null,null,null,null,null,null,null,"Prüfbericht sonstige Muster",null,null,null,null,null,null,null,null,null,null,null,null,null,false]
[]
[null,null,null,null,null,null,null,null,null,null,null,null,null,null,null,null,null,null,null,null,null,null,null,null,null,null,null,null,null,null,null,null,null,false]
["Anlagen","Prüfbericht sonstige Muster","Prüfbericht sonstige Muster","Prüfbericht sonstige Muster","Prüfbericht sonstige Muster","Prüfbericht sonstige Muster","Prüfbericht sonstige Muster","Prüfbericht sonstige Muster","Prüfbericht sonstige Muster","Prüfbericht sonstige Muster","Prüfbericht sonstige Muster","Prüfbericht sonstige Muster","Prüfbericht sonstige Muster","Prüfbericht sonstige Muster","Prüfbericht sonstige Muster","Prüfbericht sonstige Muster","Prüfbericht sonstige Muster","Prüfbericht sonstige Muster","Prüfbericht sonstige Muster","Prüfbericht sonstige Muster","Prüfbericht sonstige Muster","Prüfbericht sonstige Muster","Prüfbericht sonstige Muster","Prüfbericht sonstige Muster","Prüfbericht sonstige Muster","Prüfbericht sonstige Muster","Prüfbericht sonstige Muster","Prüfbericht sonstige Muster","Prüfbericht sonstige Muster","Prüfbericht sonstige Muster","Prüfbericht sonstige Muster","Prüfbericht sonstige Muster","Prüfbericht sonstige Muster"]
[null,null,null,"Funktionsprüfung",null,null,null,null,null,null,null,null,null,null,"Prüfmittelfähigkeitsnachweis",null,null,null,null,null,null,null,null,null,"Erscheinungsbild"]
[null,null,null,"Maßprüfung",null,null,null,null,null,null,null,null,null,null,"Prüfmittelliste",null,null,null,null,null,null,null,null,null,"Zertifikate"]
[null,null,null,"Werkstoffprüfung",null,null,null,null,null,null,null,null,null,null,"EU-Datensicherheitsblatt",null,null,null,null,null,null,null,null,null,"Konstruktionsfreigabe"]
[null,null,null,"Zuverlässigkeitsprüfung",null,null,null,null,null,null,null,null,null,null,"Haptik",null,null,null,null,null,null,null,null,null,"Inhaltsstoffe in Zukaufteilen"]
[null,null,null,"Prozeßfähigkeitsnachweis",null,null,null,null,null,null,null,null,null,null,"Akustik",null,null,null,null,null,null,null,null,null,"Sonstige"]
[null,null,null,"Prozeßablaufdiagramm",null,null,null,null,null,null,null,null,null,null,"Geruch",null,null,null,null,null,null,null,null,null,"Teilelebenslauf"]
[]
["Kennummer, Lieferant:",null,null,null,null,null,null,null,null,null,null,null,null,null,null,null,"Kennummer, Kunde:"]
["Prüfberichts-Nr.:",null,null,null,null,null,null,null,null,null,null,null,null,"Version:",null,null,"Prüfberichts-Nr.:",null,null,null,null,null,null,null,null,null,null,null,null,null,"Version:"]
["Sachnummer:",null,null,null,null,null,null,null,null,null,null,null,null,null,null,null,"Sachnummer:"]
["Zeichnungs-Nr.:",null,null,null,null,null,null,null,null,null,null,null,null,null,null,null,"Zeichnungs-Nr.:"]
["Stand/Datum:",null,null,null,null,null,null,null,null,null,null,null,null,null,null,null,"Stand/Datum:"]
["Änderungs-Nr.:",null,null,null,null,null,null,null,null,null,null,null,null,null,null,null,"Änderungs-Nr.:"]
["Benennung:",null,null,null,null,null,null,null,null,null,null,null,null,null,null,null,"Benennung:"]
["Bestellabruf-Nr./-datum:"]
["Lieferschein-Nr./-datum:",null,null,null,null,null,null,null,null,null,null,null,null,null,null,null,"Wareneingangs-Nr./-datum"]
["Liefermenge",null,null,null,null,null,null,null,null,null,null,null,null,null,null,null,"Abladestelle"]
["Charge"]
["Mustergewicht"]
[]
["Bestätigung Lieferant"]
["Hiermit wird bestätigt, daß die Bemusterungen entsprechend der VDA Schrift 2 Ziffer 4 durchgeführt worden sind."]
["Name:",null,null,null,null,null,null,null,null,"Abteilung:",null,null,null,null,null,null,"Bemerkung"]
["Telefon:",null,null,null,null,null,null,null,null,"Fax:"]
["E-Mail:"]
[]
["Datum                         Unterschrift","Abladestelle:","Abladestelle:","Abladestelle:","Abladestelle:","Abladestelle:","Abladestelle:","Abladestelle:","Abladestelle:","Abladestelle:","Abladestelle:","Abladestelle:","Abladestelle:","Abladestelle:","Abladestelle:","Abladestelle:"]
[]
["Entscheidung Kunde",null,null,null,null,null,null,null,null,null,null,null,null,"gesamt","Bemerkung:","Bemerkung:","gemäß Anlage","Bemerkung:","Bemerkung:","Bemerkung:","Bemerkung:","Bemerkung:","Bemerkung:","Bemerkung:","Bemerkung:","Bemerkung:","Bemerkung:","Bemerkung:","Bemerkung:","Bemerkung:","Bemerkung:","Bemerkung:","Bemerkung:"]
[null,null,null,null,null,null,null,null,null,null,null,null,null,null,null,null,"01","02","03","04","05","06","07","08","09","10","11","12","13","14","15","16","17"]
["frei",null,null,null,null,null,null,null,null,null,null,null,null,null,null,null,null,"","",""]
["frei mit Auflagen",null,null,null,null,null,null,null,null,null,null,null,null,null,null,null,null,"","",""]
["abgelehnt, Nachbemusterung erforderlich",null,null,null,null,null,null,null,null,null,null,null,null,null,null,null,null,"","",""]
["Abweichungs-Genehmigungs-Nr.:"]
["bei Rücksendung Lieferschein-Nr./-datum:"]
["Name:",null,null,null,null,null,null,null,null,"Abteilung:",null,null,null,null,null,null,"Bemerkung"]
["Telefon:",null,null,null,null,null,null,null,null,"Fax:"]
["E-Mail:"]
[]
["Datum                         Unterschrift","Abladestelle:","Abladestelle:","Abladestelle:","Abladestelle:","Abladestelle:","Abladestelle:","Abladestelle:","Abladestelle:","Abladestelle:","Abladestelle:","Abladestelle:","Abladestelle:","Abladestelle:","Abladestelle:","Abladestelle:"]
["Verteiler",null,null,"Lieferant"]
[null,null,null,"Kunde"]

{"sheet":"VDA-Messbericht","index":1,"n_rows":110,"n_cols":33,"rows_kept":110,"cut":false,"hidden":false,"merged":[[19,0,19,15],[20,3,20,15],[20,19,20,32],[17,6,17,10],[17,14,17,15],[17,22,17,27],[17,31,17,32],[16,24,16,32],[0,31,0,32],[14,22,14,32],[19,16,19,31],[24,0,24,1],[24,29,24,30],[24,31,24,32],[24,2,24,15],[24,16,24,28],[22,0,23,1],[22,2,23,15],[23,31,23,32],[22,29,22,32],[23,29,23,30],[22,16,23,28],[25,29,25,30],[25,31,25,32],[26,0,26,1],[26,29,26,30],[26,31,26,32],[26,2,26,15],[26,16,26,28],[25,2,25,15],[25,16,25,28],[25,0,25,1],[27,0,27,1],[27,29,27,30],[27,31,27,32],[28,0,28,1],[28,29,28,30],[28,31,28,32],[27,2,27,15],[27,16,27,28],[28,2,28,15],[28,16,28,28],[31,0,31,1],[31,29,31,30],[31,31,31,32],[32,0,32,1],[32,29,32,30],[32,31,32,32],[32,2,32,15],[32,16,32,28],[29,0,29,1],[29,29,29,30],[29,31,29,32],[30,0,30,1],[30,29,30,30],[30,31,30,32],[29,2,29,15],[29,16,29,28],[30,2,30,15],[30,16,30,28],[31,2,31,15],[31,16,31,28],[33,0,33,1],[33,29,33,30],[33,31,33,32],[34,0,34,1],[34,29,34,30],[34,31,34,32],[33,2,33,15],[33,16,33,28],[34,2,34,15],[34,16,34,28],[35,0,35,1],[35,29,35,30],[35,31,35,32],[36,0,36,1],[36,29,36,30],[36,31,36,32],[36,16,36,28],[35,2,35,15],[35,16,35,28],[36,2,36,15],[37,0,37,1],[37,29,37,30],[37,31,37,32],[38,0,38,1],[38,29,38,30],[38,31,38,32],[37,16,37,28],[38,2,38,15],[38,16,38,28],[37,2,37,15],[39,0,39,1],[39,29,39,30],[39,31,39,32],[40,0,40,1],[40,29,40,30],[40,31,40,32],[39,2,39,15],[39,16,39,28],[40,2,40,15],[40,16,40,28],[41,0,41,1],[41,29,41,30],[41,31,41,32],[42,0,42,1],[42,29,42,30],[42,31,42,32],[41,2,41,15],[41,16,41,28],[42,2,42,15],[42,16,42,28],[43,0,43,1],[43,29,43,30],[43,31,43,32],[107,19,107,32],[106,3,106,8],[106,19,106,25],[99,0,99,1],[99,31,99,32],[55,31,55,32],[50,3,50,8],[50,29,50,32],[43,2,43,15],[43,16,43,28],[44,2,44,15],[44,16,44,28],[50,19,50,25],[98,29,98,30],[79,29,79,30],[100,29,100,30],[99,29,99,30],[97,29,97,30],[80,29,80,30],[82,29,82,30],[81,29,81,30],[108,1,108,3],[108,17,108,20],[51,19,51,25],[53,1,53,3],[53,17,53,20],[51,3,51,8],[52,19,52,32],[105,3,105,8],[105,19,105,25],[105,29,105,32],[84,29,84,30],[83,29,83,30],[99,2,99,15],[100,2,100,15],[103,0,104,15],[86,29,86,30],[88,29,88,30],[87,29,87,30],[89,29,89,30],[86,16,86,28],[87,16,87,28],[97,2,97,15],[98,2,98,15],[91,2,91,15],[100,0,100,1],[100,31,100,32],[97,0,97,1],[97,31,97,32],[98,0,98,1],[98,31,98,32],[97,16,97,28],[98,16,98,28],[99,16,99,28],[100,16,100,28],[94,0,94,1],[94,31,94,32],[94,16,94,28],[94,29,94,30],[93,16,93,28],[93,29,93,30],[95,0,95,1],[95,31,95,32],[96,0,96,1],[96,31,96,32],[95,16,95,28],[96,29,96,30],[95,29,95,30],[96,16,96,28],[95,2,95,15],[96,2,96,15],[93,2,93,15],[94,2,94,15],[91,0,91,1],[91,31,91,32],[92,0,92,1],[92,31,92,32],[91,16,91,28],[92,16,92,28],[92,29,92,30],[91,29,91,30],[93,0,93,1],[93,31,93,32],[92,2,92,15],[89,0,89,1],[89,31,89,32],[90,0,90,1],[90,31,90,32],[89,16,89,28],[90,16,90,28],[90,29,90,30],[89,2,89,15],[90,2,90,15],[86,0,86,1],[86,31,86,32],[85,16,85,28],[85,29,85,30],[85,2,85,15],[86,2,86,15],[87,0,87,1],[87,31,87,32],[88,0,88,1],[88,31,88,32],[88,16,88,28],[87,2,87,15],[88,2,88,15],[83,0,83,1],[83,31,83,32],[84,0,84,1],[84,31,84,32],[84,16,84,28],[83,16,83,28],[83,2,83,15],[84,2,84,15],[85,0,85,1],[85,31,85,32],[79,16,79,28],[80,16,80,28],[79,2,79,15],[80,2,80,15],[81,0,81,1],[81,31,81,32],[82,0,82,1],[82,31,82,32],[81,16,81,28],[82,16,82,28],[81,2,81,15],[82,2,82,15],[44,0,44,1],[44,29,44,30],[44,31,44,32],[45,0,45,1],[45,29,45,30],[45,31,45,32],[45,2,45,15],[45,16,45,28],[72,6,72,10],[72,14,72,15],[72,22,72,27],[71,23,71,32],[72,31,72,32],[69,22,69,32],[106,10,106,15],[53,5,53,14],[48,0,49,15],[108,5,108,14],[106,27,106,32],[108,21,108,31],[51,27,51,32],[51,10,51,15],[53,21,53,31],[107,3,107,14],[105,12,105,15],[74,0,74,15],[77,2,78,15],[77,16,78,28],[75,3,75,15],[75,19,75,32],[77,29,77,32],[78,29,78,30],[78,31,78,32],[77,0,78,1],[79,0,79,1],[79,31,79,32],[80,0,80,1],[80,31,80,32]]}
[null,null,null,null,null,null,null,null,null,null,null,null,null,null,null,null,"-Prüfergebnisse-",null,null,null,null,null,null,null,null,null,null,null,"Seite","2","von",{"$f":"'VDA-Deckblatt'!$AF$1","v":3}]
["Anlagen",null,null,null,null,null,null,null,null,null,null,null,null,null,null,null,null,null,null,null,null,{"$f":"IF('VDA-Deckblatt'!$AI1=TRUE,\"X\",\"\")","v":""},"Erstmusterprüfbericht VDA"]
[{"$f":"IF('VDA-Deckblatt'!$AH$1=TRUE,\"X\",\"\")","v":""},"01","Funktionsprüfung",null,null,null,null,null,null,null,{"$f":"IF('VDA-Deckblatt'!$AH$14=TRUE,\"X\",\"\")","v":""},"14","Zertifikate",null,null,null,null,null,null,null,null,{"$f":"IF('VDA-Deckblatt'!$AI2=TRUE,\"X\",\"\")","v":""},"Erstbemusterung"]
[{"$f":"IF('VDA-Deckblatt'!$AH$2=TRUE,\"X\",\"\")","v":""},"02","Maßprüfung",null,null,null,null,null,null,null,{"$f":"IF('VDA-Deckblatt'!$AH$15=TRUE,\"X\",\"\")","v":""},"15","Konstruktionsfreigabe",null,null,null,null,null,null,null,"",{"$f":"IF('VDA-Deckblatt'!$AI3=TRUE,\"X\",\"\")","v":""},"Nachbemusterung"]
[{"$f":"IF('VDA-Deckblatt'!$AH$3=TRUE,\"X\",\"\")","v":""},"03","Werkstoffprüfung",null,null,null,null,null,null,null,{"$f":"IF('VDA-Deckblatt'!$AH$16=TRUE,\"X\",\"\")","v":""},"16","Inhaltsstoffe in Zukaufteilen",null,null,null,null,null,null,null,"",{"$f":"IF('VDA-Deckblatt'!$AI4=TRUE,\"X\",\"\")","v":""},"Neuteil"]
[{"$f":"IF('VDA-Deckblatt'!$AH$4=TRUE,\"X\",\"\")","v":""},"04","Zuverlässigkeitsprüfung",null,null,null,null,null,null,null,{"$f":"IF('VDA-Deckblatt'!$AH$17=TRUE,\"X\",\"\")","v":""},"17","Sonstige",null,null,null,null,null,null,null,"",{"$f":"IF('VDA-Deckblatt'!$AI5=TRUE,\"X\",\"\")","v":""},"Produktänderung"]
[{"$f":"IF('VDA-Deckblatt'!$AH$5=TRUE,\"X\",\"\")","v":""},"05","Prozeßfähigkeitsnachweis",null,null,null,null,null,null,null,{"$f":"IF('VDA-Deckblatt'!$AH$18=TRUE,\"X\",\"\")","v":""},"18","Teilelebenslauf",null,null,null,null,null,null,null,"",{"$f":"IF('VDA-Deckblatt'!$AI6=TRUE,\"X\",\"\")","v":""},"Produktverlagerung"]
[{"$f":"IF('VDA-Deckblatt'!$AH$6=TRUE,\"X\",\"\")","v":""},"06","Prozeßablaufdiagramm",null,null,null,null,null,null,null,null,null,null,null,null,null,null,null,null,null,"",{"$f":"IF('VDA-Deckblatt'!$AI7=TRUE,\"X\",\"\")","v":""},"Änderung von Produktionsverfahren"]
[{"$f":"IF('VDA-Deckblatt'!$AH$7=TRUE,\"X\",\"\")","v":""},"07","Prüfmittelfähigkeitsnachweis",null,null,null,null,null,null,null,null,null,null,null,null,null,null,null,null,null,"",{"$f":"IF('VDA-Deckblatt'!$AI8=TRUE,\"X\",\"\")","v":""},"längeres Aussetzen der Fertigung"]
[{"$f":"IF('VDA-Deckblatt'!$AH$8=TRUE,\"X\",\"\")","v":""},"08","Prüfmittelliste",null,null,null,null,null,null,null,null,null,null,null,null,null,null,null,null,null,"",{"$f":"IF('VDA-Deckblatt'!$AI9=TRUE,\"X\",\"\")","v":""},"neuer Unterlieferant"]
[{"$f":"IF('VDA-Deckblatt'!$AH$9=TRUE,\"X\",\"\")","v":""},"09","EU-Datensicherheitsblatt",null,null,null,null,null,null,null,null,null,null,null,null,null,null,null,null,null,"",{"$f":"IF('VDA-Deckblatt'!$AI10=TRUE,\"X\",\"\")","v":""},"Dokumentationspflichtiges Teil"]
[{"$f":"IF('VDA-Deckblatt'!$AH$10=TRUE,\"X\",\"\")","v":""},"10","Haptik",null,null,null,null,null,null,null,null,null,null,null,null,null,null,null,null,null,"",{"$f":"IF('VDA-Deckblatt'!$AI11=TRUE,\"X\",\"\")","v":""},"Fertigungs-/ Prüfplan erstellt"]
[{"$f":"IF('VDA-Deckblatt'!$AH$11=TRUE,\"X\",\"\")","v":""},"11","Akustik",null,null,null,null,null,null,null,null,null,null,null,null,null,null,null,null,null,"",{"$f":"IF('VDA-Deckblatt'!$AI12=TRUE,\"X\",\"\")","v":""},"FMEA durchgeführt"]
[{"$f":"IF('VDA-Deckblatt'!$AH$12=TRUE,\"X\",\"\")","v":""},"12","Geruch",null,null,null,null,null,null,null,null,null,null,null,null,null,null,null,null,null,"",{"$f":"IF('VDA-Deckblatt'!$AI13=TRUE,\"X\",\"\")","v":""},"Prüfbericht sonstige Muster"]
[{"$f":"IF('VDA-Deckblatt'!$AH$13=TRUE,\"X\",\"\")","v":""},"13","Erscheinungsbild"]
[]
["Kennummer, Lieferant:",null,null,null,null,null,null,null,{"$f":"IF('VDA-Deckblatt'!$I$25:$P$25=0,\"\",'VDA-Deckblatt'!$I$25:$P$25)","v":""},{"$f":"IF('VDA-Deckblatt'!$I$25:$P$25=0,\"\",'VDA-Deckblatt'!$I$25:$P$25)","v":""},null,null,null,null,null,null,"Kennummer Kunde:",null,null,null,null,null,null,{"$f":"IF('VDA-Deckblatt'!$X$25:$AG$25=0,\"\",'VDA-Deckblatt'!$X$25:$AG$25)","v":""},{"$f":"IF('VDA-Deckblatt'!$X$25:$AG$25=0,\"\",'VDA-Deckblatt'!$X$25:$AG$25)","v":""}]
["Prüfberichts-Nr.:",null,null,null,null,null,{"$f":"IF('VDA-Deckblatt'!$G$26:$K$26=0,\"\",'VDA-Deckblatt'!$G$26:$K$26)","v":""},null,null,null,null,null,null,"Version:",{"$f":"IF('VDA-Deckblatt'!$O$26:$P$26=0,\"\",'VDA-Deckblatt'!$O$26:$P$26)","v":""},null,"Prüfberichts-Nr.:",null,null,null,null,null,{"$f":"IF('VDA-Deckblatt'!$W$26:$AB$26=0,\"\",'VDA-Deckblatt'!$W$26:$AB$26)","v":""},null,null,null,null,null,null,null,"Version:",{"$f":"IF('VDA-Deckblatt'!$AF$26:$AG$26=0,\"\",'VDA-Deckblatt'!$AF$26:$AG$26)","v":""}]
["Sach-/Zeichnungs-/Änderungs-Nr./Stand/Datum:",null,null,null,null,null,null,null,null,null,null,null,null,null,null,null,"Sach-/Zeichnungs-/Änderungs-Nr./Stand/Datum:"]
[{"$f":"CONCATENATE('VDA-Deckblatt'!$F$27,\" / \",'VDA-Deckblatt'!$F$28,\" / \",'VDA-Deckblatt'!$F$29,\" / \",'VDA-Deckblatt'!$F$30)","v":" /  /  / "},null,null,null,null,null,null,null,null,null,null,null,null,null,null,null,{"$f":"CONCATENATE('VDA-Deckblatt'!$V$27,\" / \",'VDA-Deckblatt'!$V$28,\" / \",'VDA-Deckblatt'!$V$29,\" / \",'VDA-Deckblatt'!$V$30)","v":" /  /  / "}]
["Benennung:",null,null,{"$f":"IF('VDA-Deckblatt'!$F$31=0,\"\",'VDA-Deckblatt'!$F$31)","v":""},null,null,null,null,null,null,null,null,null,null,null,null,"Benennung:"]
[]
["Ref.- Nr.",null,"Forderungen","Benennung:","Benennung:","Benennung:","Benennung:","Benennung:","Benennung:","Benennung:","Benennung:","Benennung:","Benennung:","Benennung:","Benennung:","Benennung:","IST-Wert Lieferant","Benennung:","Benennung:","Benennung:","Benennung:","Benennung:","Benennung:","Benennung:","Benennung:","Benennung:","Benennung:","Benennung:","Benennung:","Bewertung","Benennung:","Benennung:","Benennung:"]
[null,null,"Benennung:","Benennung:","Benennung:","Benennung:","Benennung:","Benennung:","Benennung:","Benennung:","Benennung:","Benennung:","Benennung:","Benennung:","Benennung:","Benennung:","Benennung:","Benennung:","Benennung:","Benennung:","Benennung:","Benennung:","Benennung:","Benennung:","Benennung:","Benennung:","Benennung:","Benennung:","Benennung:","i.O.","Benennung:","n.i.O.","Benennung:"]
[null,null,null,null,null,null,null,null,null,null,null,null,null,null,null,null,null,null,null,null,null,null,null,null,null,null,null,null,null,null,null,""]
[null,null,null,null,null,null,null,null,null,null,null,null,null,null,null,null,null,null,null,null,null,null,null,null,null,null,null,null,null,null,null,""]
[null,null,null,null,null,null,null,null,null,null,null,null,null,null,null,null,null,null,null,null,null,null,null,null,null,null,null,null,null,null,null,""]
[null,null,null,null,null,null,null,null,null,null,null,null,null,null,null,null,null,null,null,null,null,null,null,null,null,null,null,null,null,null,null,""]
[null,null,null,null,null,null,null,null,null,null,null,null,null,null,null,null,null,null,null,null,null,null,null,null,null,null,null,null,null,null,null,""]
[null,null,null,null,null,null,null,null,null,null,null,null,null,null,null,null,null,null,null,null,null,null,null,null,null,null,null,null,null,null,null,""]
[null,null,null,null,null,null,null,null,null,null,null,null,null,null,null,null,null,null,null,null,null,null,null,null,null,null,null,null,null,null,null,""]
[null,null,null,null,null,null,null,null,null,null,null,null,null,null,null,null,null,null,null,null,null,null,null,null,null,null,null,null,null,null,null,""]
[null,null,null,null,null,null,null,null,null,null,null,null,null,null,null,null,null,null,null,null,null,null,null,null,null,null,null,null,null,null,null,""]
[null,null,null,null,null,null,null,null,null,null,null,null,null,null,null,null,null,null,null,null,null,null,null,null,null,null,null,null,null,null,null,""]
[null,null,null,null,null,null,null,null,null,null,null,null,null,null,null,null,null,null,null,null,null,null,null,null,null,null,null,null,null,null,null,""]
[null,null,null,null,null,null,null,null,null,null,null,null,null,null,null,null,null,null,null,null,null,null,null,null,null,null,null,null,null,null,null,""]
[null,null,null,null,null,null,null,null,null,null,null,null,null,null,null,null,null,null,null,null,null,null,null,null,null,null,null,null,null,null,null,""]
[null,null,null,null,null,null,null,null,null,null,null,null,null,null,null,null,null,null,null,null,null,null,null,null,null,null,null,null,null,"",null,""]
[null,null,null,null,null,null,null,null,null,null,null,null,null,null,null,null,null,null,null,null,null,null,null,null,null,null,null,null,null,"",null,""]
[null,null,null,null,null,null,null,null,null,null,null,null,null,null,null,null,null,null,null,null,null,null,null,null,null,null,null,null,null,"",null,""]
[null,null,null,null,null,null,null,null,null,null,null,null,null,null,null,null,null,null,null,null,null,null,null,null,null,null,null,null,null,"",null,""]
[null,null,null,null,null,null,null,null,null,null,null,null,null,null,null,null,null,null,null,null,null,null,null,null,null,null,null,null,null,"",null,""]
[null,null,null,null,null,null,null,null,null,null,null,null,null,null,null,null,null,null,null,null,null,null,null,null,null,null,null,null,null,"",null,""]
[null,null,null,null,null,null,null,null,null,null,null,null,null,null,null,null,null,null,null,null,null,null,null,null,null,null,null,null,null,"",null,""]
[null,null,null,null,null,null,null,null,null,null,null,null,null,null,null,null,null,null,null,null,null,null,null,null,null,null,null,null,null,"",null,""]
["",null,null,null,null,null,null,null,null,null,null,null,null,null,null,null,null,null,null,null,null,null,null,null,null,null,null,null,null,"",null,""]
["Bestätigung Lieferant",null,null,null,null,null,null,null,null,null,null,null,null,null,null,null,"Entscheidung Kunde"]
["Bemerkung",null,null,null,null,null,null,null,null,null,null,null,null,null,null,null,"frei"]
[null,null,null,null,null,null,null,null,null,null,null,null,null,null,null,null,"frei mit Auflagen"]
[null,null,null,null,null,null,null,null,null,null,null,null,null,null,null,null,"abgelehnt, Nachbemusterung erforderlich"]
["Name:",null,null,null,null,null,null,null,null,"Abteilung:",null,null,null,null,null,null,"Name:",null,null,"",null,null,null,null,null,null,"Abteilung:",null,null,""]
["Telefon:",null,null,null,null,null,null,null,null,"Fax:",null,null,null,null,null,null,"Telefon:",null,null,"",null,null,null,null,null,null,"Fax:",""]
["E-Mail:",null,null,null,null,null,null,null,null,null,null,null,null,null,null,null,"E-Mail:",null,null,""]
[null,null,null,null,null,null,null,null,null,null,null,null,null,null,null,null,null,""]
[null,"Datum                         Unterschrift",null,null,null,null,null,null,null,null,null,null,null,null,null,null,null,"Datum                         Unterschrift"]
[null,null,null,null,null,null,null,null,null,null,null,null,null,null,null,null,{"$f":"$Q$1","v":"-Prüfergebnisse-"},null,null,null,null,null,null,null,null,null,null,null,"Page",{"$f":"AD1+1","v":3},{"$f":"$AE$1","v":"von"},{"$f":"'VDA-Deckblatt'!$AF$1","v":3}]
[{"$f":"$A$2","v":"Anlagen"},null,null,null,null,null,null,null,null,null,null,null,null,null,null,null,null,null,null,null,null,{"$f":"IF('VDA-Deckblatt'!$AI$1=TRUE,\"X\",\"\")","v":""},{"$f":"$W$2","v":"Erstmusterprüfbericht VDA"}]
[{"$f":"IF('VDA-Deckblatt'!$AH$1=TRUE,\"X\",\"\")","v":""},"01",{"$f":"$C$3","v":"Funktionsprüfung"},null,null,null,null,null,null,null,{"$f":"IF('VDA-Deckblatt'!$AH$14=TRUE,\"X\",\"\")","v":""},"14",{"$f":"$M$3","v":"Zertifikate"},null,null,null,null,null,null,null,null,{"$f":"IF('VDA-Deckblatt'!$AI$2=TRUE,\"X\",\"\")","v":""},{"$f":"$W$3","v":"Erstbemusterung"}]
[{"$f":"IF('VDA-Deckblatt'!$AH$2=TRUE,\"X\",\"\")","v":""},"02",{"$f":"$C$4","v":"Maßprüfung"},null,null,null,null,null,null,null,{"$f":"IF('VDA-Deckblatt'!$AH$15=TRUE,\"X\",\"\")","v":""},"15",{"$f":"$M$4","v":"Konstruktionsfreigabe"},null,null,null,null,null,null,null,"",{"$f":"IF('VDA-Deckblatt'!$AI$3=TRUE,\"X\",\"\")","v":""},{"$f":"$W$4","v":"Nachbemusterung"}]
[{"$f":"IF('VDA-Deckblatt'!$AH$3=TRUE,\"X\",\"\")","v":""},"03",{"$f":"$C$5","v":"Werkstoffprüfung"},null,null,null,null,null,null,null,{"$f":"IF('VDA-Deckblatt'!$AH$16=TRUE,\"X\",\"\")","v":""},"16",{"$f":"$M$5","v":"Inhaltsstoffe in Zukaufteilen"},null,null,null,null,null,null,null,"",{"$f":"IF('VDA-Deckblatt'!$AI$4=TRUE,\"X\",\"\")","v":""},{"$f":"$W$5","v":"Neuteil"}]
[{"$f":"IF('VDA-Deckblatt'!$AH$4=TRUE,\"X\",\"\")","v":""},"04",{"$f":"$C$6","v":"Zuverlässigkeitsprüfung"},null,null,null,null,null,null,null,{"$f":"IF('VDA-Deckblatt'!$AH$17=TRUE,\"X\",\"\")","v":""},"17",{"$f":"$M$6","v":"Sonstige"},null,null,null,null,null,null,null,"",{"$f":"IF('VDA-Deckblatt'!$AI$5=TRUE,\"X\",\"\")","v":""},{"$f":"$W$6","v":"Produktänderung"}]
[{"$f":"IF('VDA-Deckblatt'!$AH$5=TRUE,\"X\",\"\")","v":""},"05",{"$f":"$C$7","v":"Prozeßfähigkeitsnachweis"},null,null,null,null,null,null,null,{"$f":"IF('VDA-Deckblatt'!$AH$18=TRUE,\"X\",\"\")","v":""},"18",{"$f":"$M$7","v":"Teilelebenslauf"},null,null,null,null,null,null,null,"",{"$f":"IF('VDA-Deckblatt'!$AI$6=TRUE,\"X\",\"\")","v":""},{"$f":"$W$7","v":"Produktverlagerung"}]
[{"$f":"IF('VDA-Deckblatt'!$AH$6=TRUE,\"X\",\"\")","v":""},"06",{"$f":"$C$8","v":"Prozeßablaufdiagramm"},null,null,null,null,null,null,null,null,null,null,null,null,null,null,null,null,null,"",{"$f":"IF('VDA-Deckblatt'!$AI$7=TRUE,\"X\",\"\")","v":""},{"$f":"$W$8","v":"Änderung von Produktionsverfahren"}]
[{"$f":"IF('VDA-Deckblatt'!$AH$7=TRUE,\"X\",\"\")","v":""},"07",{"$f":"$C$9","v":"Prüfmittelfähigkeitsnachweis"},null,null,null,null,null,null,null,null,null,null,null,null,null,null,null,null,null,"",{"$f":"IF('VDA-Deckblatt'!$AI$8=TRUE,\"X\",\"\")","v":""},{"$f":"$W$9","v":"längeres Aussetzen der Fertigung"}]
[{"$f":"IF('VDA-Deckblatt'!$AH$8=TRUE,\"X\",\"\")","v":""},"08",{"$f":"$C$10","v":"Prüfmittelliste"},null,null,null,null,null,null,null,null,null,null,null,null,null,null,null,null,null,"",{"$f":"IF('VDA-Deckblatt'!$AI$9=TRUE,\"X\",\"\")","v":""},{"$f":"$W$10","v":"neuer Unterlieferant"}]
[{"$f":"IF('VDA-Deckblatt'!$AH$9=TRUE,\"X\",\"\")","v":""},"09",{"$f":"$C$11","v":"EU-Datensicherheitsblatt"},null,null,null,null,null,null,null,null,null,null,null,null,null,null,null,null,null,"",{"$f":"IF('VDA-Deckblatt'!$AI$10=TRUE,\"X\",\"\")","v":""},{"$f":"$W$11","v":"Dokumentationspflichtiges Teil"}]
[{"$f":"IF('VDA-Deckblatt'!$AH$10=TRUE,\"X\",\"\")","v":""},"10",{"$f":"$C$12","v":"Haptik"},null,null,null,null,null,null,null,null,null,null,null,null,null,null,null,null,null,"",{"$f":"IF('VDA-Deckblatt'!$AI$11=TRUE,\"X\",\"\")","v":""},{"$f":"$W$12","v":"Fertigungs-/ Prüfplan erstellt"}]
[{"$f":"IF('VDA-Deckblatt'!$AH$11=TRUE,\"X\",\"\")","v":""},"11",{"$f":"$C$13","v":"Akustik"},null,null,null,null,null,null,null,null,null,null,null,null,null,null,null,null,null,"",{"$f":"IF('VDA-Deckblatt'!$AI$12=TRUE,\"X\",\"\")","v":""},{"$f":"$W$13","v":"FMEA durchgeführt"}]
[{"$f":"IF('VDA-Deckblatt'!$AH$12=TRUE,\"X\",\"\")","v":""},"12",{"$f":"$C$14","v":"Geruch"},null,null,null,null,null,null,null,null,null,null,null,null,null,null,null,null,null,"",{"$f":"IF('VDA-Deckblatt'!$AI$13=TRUE,\"X\",\"\")","v":""},{"$f":"$W$14","v":"Prüfbericht sonstige Muster"}]
[{"$f":"IF('VDA-Deckblatt'!$AH$13=TRUE,\"X\",\"\")","v":""},"13",{"$f":"$C$15","v":"Erscheinungsbild"}]
[]
[{"$f":"$A$17","v":"Kennummer, Lieferant:"},null,null,null,null,null,null,null,{"$f":"$J$17","v":""},null,null,null,null,null,null,null,{"$f":"$Q$17","v":"Kennummer Kunde:"},null,null,null,null,null,null,{"$f":"$Y$17","v":""}]
[{"$f":"$A$18","v":"Prüfberichts-Nr.:"},null,null,null,null,null,{"$f":"IF('VDA-Deckblatt'!$G$26:$K$26=0,\"\",'VDA-Deckblatt'!$G$26:$K$26)","v":""},null,null,null,null,null,null,{"$f":"$N$18","v":"Version:"},{"$f":"IF('VDA-Deckblatt'!$O$26:$P$26=0,\"\",'VDA-Deckblatt'!$O$26:$P$26)","v":""},null,{"$f":"$Q$18","v":"Prüfberichts-Nr.:"},null,null,null,null,null,{"$f":"IF('VDA-Deckblatt'!$W$26:$AB$26=0,\"\",'VDA-Deckblatt'!$W$26:$AB$26)","v":""},null,null,null,null,null,null,null,{"$f":"$AE$18","v":"Version:"},{"$f":"IF('VDA-Deckblatt'!$AF$26:$AG$26=0,\"\",'VDA-Deckblatt'!$AF$26:$AG$26)","v":""}]
[{"$f":"$A$19","v":"Sach-/Zeichnungs-/Änderungs-Nr./Stand/Datum:"},null,null,null,null,null,null,null,null,null,null,null,null,null,null,null,{"$f":"$Q$19","v":"Sach-/Zeichnungs-/Änderungs-Nr./Stand/Datum:"}]
[{"$f":"CONCATENATE('VDA-Deckblatt'!$F$27,\" / \",'VDA-Deckblatt'!$F$28,\" / \",'VDA-Deckblatt'!$F$29,\" / \",'VDA-Deckblatt'!$F$30)","v":" /  /  / "},null,null,null,null,null,null,null,null,null,null,null,null,null,null,null,{"$f":"$Q$20","v":" /  /  / "}]
[{"$f":"$A$21","v":"Benennung:"},null,null,{"$f":"IF('VDA-Deckblatt'!$F$31=0,\"\",'VDA-Deckblatt'!$F$31)","v":""},null,null,null,null,null,null,null,null,null,null,null,null,{"$f":"$Q$21","v":"Benennung:"}]
[]
[{"$f":"$A$23","v":"Ref.- Nr."},null,{"$f":"$C$23","v":"Forderungen"},"Benennung:","Benennung:","Benennung:","Benennung:","Benennung:","Benennung:","Benennung:","Benennung:","Benennung:","Benennung:","Benennung:","Benennung:","Benennung:",{"$f":"$Q$23","v":"IST-Wert Lieferant"},"Benennung:","Benennung:","Benennung:","Benennung:","Benennung:","Benennung:","Benennung:","Benennung:","Benennung:","Benennung:","Benennung:","Benennung:",{"$f":"$AD$23","v":"Bewertung"}]
[null,null,"Benennung:","Benennung:","Benennung:","Benennung:","Benennung:","Benennung:","Benennung:","Benennung:","Benennung:","Benennung:","Benennung:","Benennung:","Benennung:","Benennung:","Benennung:","Benennung:","Benennung:","Benennung:","Benennung:","Benennung:","Benennung:","Benennung:","Benennung:","Benennung:","Benennung:","Benennung:","Benennung:",{"$f":"$AD$24","v":"i.O."},null,{"$f":"$AF$24","v":"n.i.O."}]
["",null,null,null,null,null,null,null,null,null,null,null,null,null,null,null,null,null,null,null,null,null,null,null,null,null,null,null,null,"",null,""]
[null,null,null,null,null,null,null,null,null,null,null,null,null,null,null,null,null,null,null,null,null,null,null,null,null,null,null,null,null,null,null,""]
[null,null,null,null,null,null,null,null,null,null,null,null,null,null,null,null,null,null,null,null,null,null,null,null,null,null,null,null,null,null,null,""]
[null,null,null,null,null,null,null,null,null,null,null,null,null,null,null,null,null,null,null,null,null,null,null,null,null,null,null,null,null,null,null,""]
[null,null,null,null,null,null,null,null,null,null,null,null,null,null,null,null,null,null,null,null,null,null,null,null,null,null,null,null,null,null,null,""]
[null,null,null,null,null,null,null,null,null,null,null,null,null,null,null,null,null,null,null,null,null,null,null,null,null,null,null,null,null,null,null,""]
[null,null,null,null,null,null,null,null,null,null,null,null,null,null,null,null,null,null,null,null,null,null,null,null,null,null,null,null,null,null,null,""]
[null,null,null,null,null,null,null,null,null,null,null,null,null,null,null,null,null,null,null,null,null,null,null,null,null,null,null,null,null,null,null,""]
[null,null,null,null,null,null,null,null,null,null,null,null,null,null,null,null,null,null,null,null,null,null,null,null,null,null,null,null,null,null,null,""]
[null,null,null,null,null,null,null,null,null,null,null,null,null,null,null,null,null,null,null,null,null,null,null,null,null,null,null,null,null,null,null,""]
[null,null,null,null,null,null,null,null,null,null,null,null,null,null,null,null,null,null,null,null,null,null,null,null,null,null,null,null,null,null,null,""]
[null,null,null,null,null,null,null,null,null,null,null,null,null,null,null,null,null,null,null,null,null,null,null,null,null,null,null,null,null,null,null,""]
[null,null,null,null,null,null,null,null,null,null,null,null,null,null,null,null,null,null,null,null,null,null,null,null,null,null,null,null,null,null,null,""]
[null,null,null,null,null,null,null,null,null,null,null,null,null,null,null,null,null,null,null,null,null,null,null,null,null,null,null,null,null,null,null,""]
[null,null,null,null,null,null,null,null,null,null,null,null,null,null,null,null,null,null,null,null,null,null,null,null,null,null,null,null,null,"",null,""]
[null,null,null,null,null,null,null,null,null,null,null,null,null,null,null,null,null,null,null,null,null,null,null,null,null,null,null,null,null,"",null,""]
[null,null,null,null,null,null,null,null,null,null,null,null,null,null,null,null,null,null,null,null,null,null,null,null,null,null,null,null,null,"",null,""]
[null,null,null,null,null,null,null,null,null,null,null,null,null,null,null,null,null,null,null,null,null,null,null,null,null,null,null,null,null,"",null,""]
[null,null,null,null,null,null,null,null,null,null,null,null,null,null,null,null,null,null,null,null,null,null,null,null,null,null,null,null,null,"",null,""]
[null,null,null,null,null,null,null,null,null,null,null,null,null,null,null,null,null,null,null,null,null,null,null,null,null,null,null,null,null,"",null,""]
[null,null,null,null,null,null,null,null,null,null,null,null,null,null,null,null,null,null,null,null,null,null,null,null,null,null,null,null,null,"",null,""]
["",null,null,null,null,null,null,null,null,null,null,null,null,null,null,null,null,null,null,null,null,null,null,null,null,null,null,null,null,"",null,""]
[{"$f":"$A$47","v":"Bestätigung Lieferant"},null,null,null,null,null,null,null,null,null,null,null,null,null,null,null,{"$f":"$Q$47","v":"Entscheidung Kunde"}]
[{"$f":"$A$48","v":"Bemerkung"},null,null,null,null,null,null,null,null,null,null,null,null,null,null,null,{"$f":"$Q$48","v":"frei"}]
[null,null,null,null,null,null,null,null,null,null,null,null,null,null,null,null,{"$f":"$Q$49","v":"frei mit Auflagen"}]
[null,null,null,null,null,null,null,null,null,null,null,null,null,null,null,null,{"$f":"$Q$50","v":"abgelehnt, Nachbemusterung erforderlich"}]
[{"$f":"$A$51","v":"Name:"},null,null,null,null,null,null,null,null,{"$f":"$J$51","v":"Abteilung:"},null,null,null,null,null,null,{"$f":"$Q$51","v":"Name:"},null,null,"",null,null,null,null,null,null,{"$f":"$AA$51","v":"Abteilung:"},null,null,""]
[{"$f":"$A$52","v":"Telefon:"},null,null,null,null,null,null,null,null,{"$f":"$J$52","v":"Fax:"},null,null,null,null,null,null,{"$f":"$Q$52","v":"Telefon:"},null,null,"",null,null,null,null,null,null,{"$f":"$AA$52","v":"Fax:"},""]
[{"$f":"$A$53","v":"E-Mail:"},null,null,null,null,null,null,null,null,null,null,null,null,null,null,null,{"$f":"$Q$53","v":"E-Mail:"},null,null,""]
[null,null,null,null,null,null,null,null,null,null,null,null,null,null,null,null,null,""]
[null,{"$f":"$B$55","v":"Datum                         Unterschrift"},null,null,null,null,null,null,null,null,null,null,null,null,null,null,null,{"$f":"$R$55","v":"Datum                         Unterschrift"}]